[Event "44th Chess Olympiad Women 2022"]
[Site "Chennai"]
[Date "2022.07.29"]
[Round "1.18"]
[White "Ranasinghe, S D.."]
[Black "Blagojevic, Tijana"]
[Result "0-1"]
[WhiteElo "1687"]
[BlackElo "2330"]
[Annotator "TA"]
[PlyCount "138"]
[EventDate "2022.??.??"]
[TimeControl "60"]

{[%evp 9,138,0,0,0,0,0,0,0,0,0,0,0,0,0,14,16,6,7,12,-4,5,-17,-10,-44,-26,-93,
-27,-60,-31,-112,-114,-218,-194,-182,-85,-82,-63,-45,-47,-58,-39,-33,-37,-139,
-11,-39,-26,-33,-44,-30,-31,-28,-15,-45,-46,-90,-76,-72,-41,-67,-8,-9,-15,-112,
-44,-66,-61,-66,-47,-57,0,-16,0,0,0,-34,-29,-27,-30,-33,-27,-35,-27,-54,-45,
-44,0,-120,-128,-137,-133,-171,-169,-278,-267,-252,-241,-573,-312,-583,-652,
-883,-862,-853,-841,-774,-763,-717,-712,-814,-770,-1490,-1537,-29989,-29990,
-29988,0,-1846,-1926,-1030,-948,-29989,-29988,-29996,-29988,-29988,-29988,
-29994,-29991,-29991,-29992]} 1. Nf3 {[%emt 0:00:11]} d5 {[%emt 0:00:12]} 2. g3
{[%emt 0:00:14]} Nd7 {[%emt 0:00:17]} 3. c4 {[%emt 0:00:58]} dxc4 {[%emt 0:00:
00]} 4. Qa4 {[%emt 0:00:36]} a6 {[%emt 0:00:52]} 5. Qxc4 {[%emt 0:00:07]} b5 {
[%emt 0:01:07]} 6. Qe4 {[%emt 0:07:08] A09: Réti Opening: 1 Nf3 d5 2 c4.} Rb8
{[%emt 0:01:36]} 7. Bg2 {[%emt 0:01:20]} Ngf6 {[%emt 0:00:50]} 8. Qc2 {[%emt 0:
00:00] The position is equal.} Bb7 {[%emt 0:01:56]} 9. O-O {[%emt 0:00:33]} c5
{[%emt 0:03:03]} 10. d3 {[%emt 0:02:27]} e6 {[%emt 0:01:01]} 11. a4 {[%emt 0:
00:00] [#]} Qb6 $146 {[%emt 0:00:47]} ({Predecessor:} 11... Bd6 12. Nc3 Qb6 13.
e4 O-O 14. h3 Bc6 15. axb5 axb5 16. Bg5 Qb7 17. Qe2 h6 {1-0 (47) Karthikeyan,P
(2445)-Ashwin,H (1882) New Delhi 2019}) 12. Bd2 {[%emt 0:03:15]} Be7 {[%emt 0:
00:00]} 13. axb5 {[%emt 0:05:58]} axb5 {[%emt 0:00:06]} 14. Ba5 {[%emt 0:00:02]
} Qc6 {[%emt 0:05:43]} 15. Nc3 {[%emt 0:01:05]} O-O {[%emt 0:05:02]} 16. Nh4 {
[%emt 0:04:52]} Qc8 {[%emt 0:01:24]} 17. e4 {[%emt 0:01:12]} (17. Nf3 $1 $11)
17... Bc6 {[%emt 0:04:24]} (17... b4 $17 18. Nb1 g5) 18. Ne2 {[%emt 0:03:08]
[%cal Yb2b4]} Qb7 {[%emt 0:02:22]} (18... c4 $5) 19. Bc3 {[%emt 0:01:02]} (19.
Nf3 $15) 19... Rfc8 {[%emt 0:03:11]} 20. f4 {[%emt 0:03:35]} (20. b3 $17) 20...
c4 {[%emt 0:01:29]} 21. e5 {[%emt 0:20:08]} cxd3 {[%emt 0:00:58]} (21... Nd5
$19 {and Black stays clearly on top. White must now prevent ...Ne3.} 22. Bd2
Nc5) 22. Qxd3 $17 {[%emt 0:00:35]} Nc5 {[%emt 0:01:10]} 23. Bxc6 {[%emt 0:00:
00]} Qxc6 {[%emt 0:01:42]} 24. Qf3 {[%emt 0:00:14]} Qxf3 {[%emt 0:02:33]} 25.
Nxf3 {[%emt 0:01:08]} Nd5 {[%emt 0:00:35]} 26. Ra7 {[%emt 0:04:10]} (26. Nfd4
$15) 26... Bd8 {[%emt 0:00:59]} (26... Nb3 $17 {Hoping for ...Bc5+.} 27. Ra2 b4
) 27. Bd4 {[%emt 0:06:08]} Bb6 {[%emt 0:00:51]} 28. Ra3 {[%emt 0:01:43]} b4 {
[%emt 0:03:06]} 29. Ra2 {[%emt 0:00:06]} h6 {[%emt 0:05:53]} 30. Rd1 {[%emt 0:
00:00]} Rd8 {[%emt 0:03:59][%cal Yd5e3]} 31. Bf2 {[%emt 0:01:40] Against Ne3}
Rd7 {[%emt 0:01:25][%cal Yd5f4] ...Nxf4! is the strong threat.} 32. Rda1 {
[%emt 0:02:16]} Kh7 {[%emt 0:02:25] Black is more active.} 33. Ra8 {[%emt 0:00:
00]} Rbb7 {[%emt 0:08:50]} 34. Rc8 {[%emt 0:04:53]} Rdc7 {[%emt 0:00:55]} (
34... Nd3 $1 $15 35. Bxb6 Nxb6) 35. Rxc7 $11 {[%emt 0:02:04]} Rxc7 {[%emt 0:00:
00]} 36. Kf1 {[%emt 0:02:31] [#]} (36. Nc1 $11 {remains equal.}) 36... Nd3 {
[%emt 0:01:44]} (36... Nb3 $1 $17 {[%cal Rb3a1]} 37. Bxb6 Nxb6) 37. Bxb6 $15 {
[%emt 0:00:21]} Nxb6 {[%emt 0:00:03]} 38. b3 $1 {[%emt 0:01:19]} Nd5 {[%emt 0:
00:00]} 39. Ned4 {[%emt 0:00:37] Prevents Rc2.} Nc3 {[%emt 0:01:06]} (39... g6
$15) 40. Ra8 {[%emt 0:00:23]} Rd7 {[%emt 0:02:34]} 41. Nc6 {[%emt 0:31:29]} Rc7
{[%emt 0:38:31]} 42. Nfd4 {[%emt 0:00:27]} g5 {[%emt 0:00:00]} 43. fxg5 {
[%emt 0:00:00]} hxg5 {[%emt 0:00:00]} 44. Rb8 {[%emt 0:00:00]} Nd5 {[%emt 0:00:
00]} 45. Kg2 {[%emt 0:00:00]} g4 {[%emt 0:00:00]} 46. Kf1 {[%emt 0:00:00]} Kg7
{[%emt 0:00:00]} 47. Ra8 {[%emt 0:00:00]} Nb6 {[%emt 0:02:12]} 48. Ra6 {
[%emt 0:00:00] [#]} (48. Re8 $11) 48... Nd7 $1 $17 {[%emt 0:03:28] White is
now going downhill.} 49. Nb5 {[%emt 0:00:00]} Rc8 {[%emt 0:00:56]} 50. Nd6 {
[%emt 0:00:00]} Rh8 {[%emt 0:00:58]} 51. Nc4 {[%emt 0:00:00]} (51. Kg2 $142)
51... Rxh2 $19 {[%emt 0:03:09] aiming for ...N7c5.} 52. Ra7 {[%emt 0:00:00]}
N7c5 {[%emt 0:00:31]} 53. Ne3 $2 {[%emt 0:00:00]} (53. Nd4) 53... Rf2+ {
[%emt 0:00:29]} 54. Kg1 {[%emt 0:00:00]} Rf3 {[%emt 0:00:40]} 55. Nc4 {[%emt 0:
00:00]} Rxg3+ {[%emt 0:01:58]} 56. Kh2 {[%emt 0:00:00]} Rh3+ {[%emt 0:00:10]}
57. Kg1 {[%emt 0:00:00]} Ne4 {[%emt 0:02:32] Threatens to win with ...Rg3+.}
58. Nd6 {[%emt 0:00:00]} Ng5 {[%emt 0:01:37]} 59. Ne8+ {[%emt 0:00:00]} Kh6 {
[%emt 0:00:39]} 60. Nf6 {[%emt 0:00:00]} Nf3+ {[%emt 0:00:15]} 61. Kg2 {
[%emt 0:00:00]} Nf4+ {[%emt 0:01:30]} 62. Kf2 {[%emt 0:00:00]} Nd3+ {[%emt 0:
00:00]} (62... g3+ $142 63. Ke3 g2 64. Ra1 Ne1+ 65. Kd4 g1=Q+ 66. Kc4 Rc3+ 67.
Kb5 Qc5+ 68. Ka6 Qxc6+ 69. Ka7 Qc7+ 70. Ka8 Qc8+ 71. Ka7 Rc7+ 72. Kb6 Rb7+ 73.
Ka6 Qa8#) 63. Kg2 {[%emt 0:00:32]} Nde1+ {[%emt 0:00:21]} 64. Kf1 {[%emt 0:00:
00]} g3 {[%emt 0:00:29][%cal Yg4g3,Yg3g2] ( -> ...g2+)} 65. Ng4+ {[%emt 0:01:
23]} Kg5 {[%emt 0:00:20] Black mates.} 66. Ne3 {[%emt 0:00:09]} Rh1+ {[%emt 0:
00:55]} 67. Ke2 {[%emt 0:00:05]} Rh2+ {[%emt 0:00:32]} 68. Kd1 {[%emt 0:00:06]}
Nd3 {[%emt 0:00:47][%csl Gf3][%cal Rh2d2]} 69. Nf1 {[%emt 0:00:00]} g2 {
[%emt 0:00:25] Weighted Error Value: White=0.43/Black=0.17 (very precise)} 0-1

[Event "44th Chess Olympiad Women 2022"]
[Site "Chennai"]
[Date "2022.07.29"]
[Round "1.19"]
[White "Klinova, Masha"]
[Black "Cho, Yeonhee"]
[Result "1-0"]
[WhiteElo "2251"]
[BlackElo "1427"]
[Annotator "NA RC"]
[PlyCount "63"]
[EventDate "2022.??.??"]
[TimeControl "60"]

1. e4 {[%emt 0:00:03]} e5 {[%emt 0:00:07]} 2. Nf3 {[%emt 0:00:12]} Nc6 {
[%emt 0:00:06]} 3. Bb5 {[%emt 0:00:43]} a6 {[%emt 0:00:08]} 4. Bxc6 {[%emt 0:
00:00]} dxc6 {[%emt 0:01:05]} 5. d4 {[%emt 0:00:04]} exd4 {[%emt 0:05:17]} 6.
Qxd4 {[%emt 0:04:10]} Qxd4 {[%emt 0:05:10]} 7. Nxd4 {[%emt 0:01:12]} Bc5 {
[%emt 0:10:27]} 8. Be3 {[%emt 0:00:55]} Bb6 {[%emt 0:02:36]} 9. Nc3 {[%emt 0:
00:00]} Nf6 {[%emt 0:00:09]} 10. f3 {[%emt 0:00:21]} O-O {[%emt 0:09:19]} 11.
O-O-O {[%emt 0:01:04]} Ba7 {[%emt 0:10:07]} 12. Bg5 {[%emt 0:06:17]} Bxd4 {
[%emt 0:06:40]} 13. Rxd4 {[%emt 0:00:09]} Nd7 {[%emt 0:09:58]} 14. Rd2 {
[%emt 0:04:26]} f5 {[%emt 0:06:01]} 15. exf5 {[%emt 0:03:48]} Rxf5 {[%emt 0:00:
00]} 16. Bd8 {[%emt 0:00:25]} Nf6 {[%emt 0:04:45]} 17. Bxc7 {[%emt 0:01:39]}
Be6 {[%emt 0:02:48]} 18. Re1 {[%emt 0:01:44]} Bf7 {[%emt 0:02:17]} 19. Bb6 {
[%emt 0:09:52]} Nd5 {[%emt 0:15:44]} 20. Nxd5 {[%emt 0:05:08]} Bxd5 {[%emt 0:
00:00]} 21. b3 {[%emt 0:00:36]} c5 {[%emt 0:03:39]} 22. g4 {[%emt 0:03:03]} Rf6
{[%emt 0:00:53]} 23. Rxd5 {[%emt 0:01:18]} Rxb6 {[%emt 0:00:04]} 24. Rxc5 {
[%emt 0:00:08]} Rf8 {[%emt 0:00:09]} 25. Re3 {[%emt 0:00:55]} Rbf6 {[%emt 0:00:
00]} 26. Rcc3 {[%emt 0:04:16]} Rh6 {[%emt 0:02:22]} 27. Re7 {[%emt 0:00:29]}
Rxh2 {[%emt 0:00:23]} 28. Rxb7 {[%emt 0:00:43]} Rf2 {[%emt 0:00:12]} 29. Rcc7 {
[%emt 0:00:17]} R8xf3 {[%emt 0:00:13]} 30. Rxg7+ {[%emt 0:00:29]} Kh8 {[%emt 0:
00:00]} 31. Rxh7+ {[%emt 0:00:10]} Kg8 {[%emt 0:00:05]} 32. Rhc7 {[%emt 0:00:
00]} 1-0

[Event "44th Chess Olympiad Women 2022"]
[Site "Chennai"]
[Date "2022.07.29"]
[Round "1.19"]
[White "Levitan, Ronit"]
[Black "Kang, Sohyun"]
[Result "1-0"]
[WhiteElo "2084"]
[BlackElo "1593"]
[Annotator "NA"]
[PlyCount "53"]
[EventDate "2022.??.??"]
[TimeControl "60"]

1. e4 {[%emt 0:00:34]} e6 {[%emt 0:00:12]} 2. d4 {[%emt 0:00:10]} d5 {[%emt 0:
00:00]} 3. Nd2 {[%emt 0:00:14]} c5 {[%emt 0:00:44]} 4. exd5 {[%emt 0:00:15]}
Qxd5 {[%emt 0:01:10]} 5. Ngf3 {[%emt 0:00:18]} cxd4 {[%emt 0:01:03]} 6. Bc4 {
[%emt 0:00:22]} Qd6 {[%emt 0:00:19]} 7. O-O {[%emt 0:01:21]} Nf6 {[%emt 0:00:
00]} 8. Nb3 {[%emt 0:00:08]} Nc6 {[%emt 0:00:31]} 9. Nbxd4 {[%emt 0:00:17]}
Nxd4 {[%emt 0:00:11]} 10. Nxd4 {[%emt 0:00:06]} a6 {[%emt 0:03:09]} 11. Re1 {
[%emt 0:01:24]} Qc7 {[%emt 0:01:21]} 12. Bb3 {[%emt 0:00:07]} Bd6 {[%emt 0:00:
00]} 13. h3 {[%emt 0:05:24]} O-O {[%emt 0:05:14]} 14. c3 {[%emt 0:01:16]} b5 {
[%emt 0:08:31]} 15. Bg5 {[%emt 0:05:42]} Bb7 {[%emt 0:07:12]} 16. Qd3 {[%emt 0:
00:00]} Nh5 {[%emt 0:10:17]} 17. Rxe6 {[%emt 0:14:37]} Bf4 {[%emt 0:12:57]} 18.
Re7 {[%emt 0:03:48]} Qc8 {[%emt 0:06:21]} 19. Bxf4 {[%emt 0:01:50]} Nxf4 {
[%emt 0:00:26]} 20. Qg3 {[%emt 0:00:07]} Qb8 {[%emt 0:23:52]} 21. Nf5 {[%emt 0:
00:00]} g6 {[%emt 0:06:41]} 22. Nh6+ {[%emt 0:01:31]} Kg7 {[%emt 0:00:51]} 23.
Nxf7 {[%emt 0:01:43]} Bd5 {[%emt 0:03:21]} 24. Nd6+ {[%emt 0:06:37]} Kh8 {
[%emt 0:02:02]} 25. Qh4 {[%emt 0:02:19]} Nh5 {[%emt 0:02:50]} 26. Bxd5 {
[%emt 0:01:04]} Qxd6 {[%emt 0:01:32]} 27. Bxa8 {[%emt 0:00:18]} 1-0

[Event "44th Chess Olympiad Women 2022"]
[Site "Chennai"]
[Date "2022.07.29"]
[Round "1.19"]
[White "Park, Haneul"]
[Black "Lahav, Michal"]
[Result "0-1"]
[WhiteElo "1531"]
[BlackElo "2191"]
[Annotator "ChessBase"]
[PlyCount "80"]
[EventDate "2022.??.??"]
[TimeControl "60"]

1. d4 {[%emt 0:00:05]} Nf6 {[%emt 0:00:03]} 2. c4 {[%emt 0:00:08]} c5 {[%emt 0:
00:00]} 3. d5 {[%emt 0:00:15]} e6 {[%emt 0:00:11]} 4. Nc3 {[%emt 0:00:09]} exd5
{[%emt 0:00:06]} 5. cxd5 {[%emt 0:00:05]} d6 {[%emt 0:00:19]} 6. e4 {[%emt 0:
00:00]} g6 {[%emt 0:00:15]} 7. Nf3 {[%emt 0:00:26]} Bg7 {[%emt 0:01:01]} 8. Be2
{[%emt 0:00:22]} O-O {[%emt 0:00:15]} 9. O-O {[%emt 0:00:08]} Bg4 {[%emt 0:00:
00]} 10. h3 {[%emt 0:04:08]} Bxf3 {[%emt 0:00:55]} 11. Bxf3 {[%emt 0:00:09]}
Nbd7 {[%emt 0:02:39]} 12. Bf4 {[%emt 0:16:02]} Qe7 {[%emt 0:01:06]} 13. Re1 {
[%emt 0:11:30]} Ne8 {[%emt 0:01:21]} 14. Qd2 {[%emt 0:33:08]} Nc7 {[%emt 0:00:
00]} 15. Be2 {[%emt 0:20:45]} Bf6 {[%emt 0:29:46]} 16. Nb5 {[%emt 0:02:57]}
Nxb5 {[%emt 0:23:41]} 17. Bxb5 {[%emt 0:00:23]} Rfe8 {[%emt 0:00:10]} 18. Rab1
{[%emt 0:02:29]} a6 {[%emt 0:00:12]} 19. Bxd7 {[%emt 0:00:46]} Qxd7 {[%emt 0:
00:00]} 20. b4 {[%emt 0:01:30]} c4 {[%emt 0:00:14]} 21. Bg5 {[%emt 0:03:08]}
Bg7 {[%emt 0:01:06]} 22. Qc2 {[%emt 0:00:39]} Rac8 {[%emt 0:00:32]} 23. a4 {
[%emt 0:00:28]} b5 {[%emt 0:00:17]} 24. a5 {[%emt 0:00:55]} h6 {[%emt 0:04:33]}
25. Bd2 {[%emt 0:00:05]} c3 {[%emt 0:00:36]} 26. Be3 {[%emt 0:00:10]} Rc4 {
[%emt 0:00:08]} 27. Bb6 {[%emt 0:01:24]} Qe7 {[%emt 0:01:07]} 28. f3 {[%emt 0:
00:00]} Be5 {[%emt 0:00:14]} 29. Be3 {[%emt 0:00:29]} Qh4 {[%emt 0:00:30]} 30.
Bf2 {[%emt 0:00:33]} Qf4 {[%emt 0:00:52]} 31. Be3 {[%emt 0:00:38]} Qh2+ {
[%emt 0:01:00]} 32. Kf1 {[%emt 0:00:05]} Kh7 {[%emt 0:00:30]} 33. Bg1 {[%emt 0:
00:00]} Qh1 {[%emt 0:09:31]} 34. Kf2 {[%emt 0:00:25]} h5 {[%emt 0:00:05]} 35.
Red1 {[%emt 0:01:01]} Rec8 {[%emt 0:00:30]} 36. Ke3 {[%emt 0:00:36]} g5 {
[%emt 0:02:11]} 37. Rbc1 {[%emt 0:00:31]} Rxb4 {[%emt 0:00:02]} 38. Rb1 {
[%emt 0:00:09]} Ra4 {[%emt 0:01:50]} 39. Bf2 {[%emt 0:00:40]} Qxg2 {[%emt 0:00:
00]} 40. Rg1 {[%emt 0:00:09]} Bd4+ {[%emt 0:00:07]} 0-1

[Event "44th Chess Olympiad Women 2022"]
[Site "Chennai"]
[Date "2022.07.29"]
[Round "1.19"]
[White "Park, Sunwoo"]
[Black "Belenkaya, Dina"]
[Result "1-0"]
[WhiteElo "1773"]
[BlackElo "2256"]
[Annotator "RC"]
[PlyCount "75"]
[EventDate "2022.??.??"]
[TimeControl "60"]

1. e4 {[%emt 0:00:03]} c6 {[%emt 0:00:05]} 2. d4 {[%emt 0:00:16]} d5 {[%emt 0:
00:00]} 3. e5 {[%emt 0:00:33]} Bf5 {[%emt 0:00:24]} 4. Nf3 {[%emt 0:01:01]} e6
{[%emt 0:00:13]} 5. Bd3 {[%emt 0:00:34]} Bxd3 {[%emt 0:00:21]} 6. Qxd3 {
[%emt 0:00:09]} Qa5+ {[%emt 0:00:21]} 7. c3 {[%emt 0:02:36]} Qa6 {[%emt 0:00:
00]} 8. Qc2 {[%emt 0:05:36]} c5 {[%emt 0:04:25]} 9. dxc5 {[%emt 0:12:43]} Bxc5
{[%emt 0:00:18]} 10. b4 {[%emt 0:00:44]} Be7 {[%emt 0:03:01]} 11. Be3 {[%emt 0:
00:00]} Nd7 {[%emt 0:01:08]} 12. a4 {[%emt 0:08:52]} Rc8 {[%emt 0:03:42]} 13.
b5 {[%emt 0:01:31]} Qa5 {[%emt 0:00:41]} 14. O-O {[%emt 0:02:21]} h5 {[%emt 0:
00:00]} 15. Rc1 {[%emt 0:05:50]} Nh6 {[%emt 0:01:06]} 16. Nbd2 {[%emt 0:02:44]}
Nf5 {[%emt 0:01:15]} 17. Qd3 {[%emt 0:04:42]} Bc5 {[%emt 0:20:48]} 18. c4 {
[%emt 0:06:06]} d4 {[%emt 0:12:46]} 19. Nb3 {[%emt 0:03:37]} Qc7 {[%emt 0:00:
00]} 20. Bd2 {[%emt 0:15:56]} Nxe5 {[%emt 0:06:08]} 21. Nxe5 {[%emt 0:00:39]}
Qxe5 {[%emt 0:00:04]} 22. Re1 {[%emt 0:00:12]} Qf6 {[%emt 0:00:22]} 23. Nxc5 {
[%emt 0:01:10]} Rxc5 {[%emt 0:00:02]} 24. Bb4 {[%emt 0:00:17]} Rc7 {[%emt 0:00:
00]} 25. c5 {[%emt 0:02:31]} O-O {[%emt 0:06:18]} 26. c6 {[%emt 0:07:25]} Rb8 {
[%emt 0:03:08]} 27. Ba5 {[%emt 0:00:46]} b6 {[%emt 0:04:06]} 28. Bd2 {[%emt 0:
00:00]} Re8 {[%emt 0:04:19]} 29. a5 {[%emt 0:02:49]} Ne7 {[%emt 0:07:17]} 30.
axb6 {[%emt 0:01:09]} axb6 {[%emt 0:00:01]} 31. Bb4 {[%emt 0:00:57]} e5 {
[%emt 0:00:46]} 32. Bxe7 {[%emt 0:01:14]} Qxe7 {[%emt 0:01:35]} 33. h3 {
[%emt 0:02:03]} Qd8 {[%emt 0:01:41]} 34. Ra4 {[%emt 0:02:47]} Qd5 {[%emt 0:00:
00]} 35. Rxd4 {[%emt 0:00:32]} Qe6 {[%emt 0:01:24]} 36. Rd6 {[%emt 0:00:59]}
Qc8 {[%emt 0:00:27]} 37. Rd7 {[%emt 0:00:39]} g6 {[%emt 0:00:41]} 38. Qd6 {
[%emt 0:00:19]} 1-0

[Event "44th Chess Olympiad Women 2022"]
[Site "Chennai"]
[Date "2022.07.29"]
[Round "1.20"]
[White "Cosma, Elena-Luminita"]
[Black "Mutisya, Jully"]
[Result "1-0"]
[WhiteElo "2248"]
[BlackElo "1428"]
[Annotator "ChessBase"]
[PlyCount "65"]
[EventDate "2022.??.??"]
[TimeControl "60"]

1. d4 {[%emt 0:00:03]} Nf6 {[%emt 0:00:17]} 2. Nf3 {[%emt 0:00:08]} g6 {
[%emt 0:00:48]} 3. g3 {[%emt 0:00:08]} Bg7 {[%emt 0:00:09]} 4. Bg2 {[%emt 0:00:
00]} O-O {[%emt 0:00:18]} 5. O-O {[%emt 0:00:05]} d6 {[%emt 0:00:13]} 6. b3 {
[%emt 0:00:08]} c5 {[%emt 0:03:31]} 7. c4 {[%emt 0:00:10]} Nc6 {[%emt 0:01:05]}
8. Bb2 {[%emt 0:00:06]} Nd7 {[%emt 0:05:06]} 9. Qd2 {[%emt 0:11:14]} cxd4 {
[%emt 0:15:23]} 10. Nxd4 {[%emt 0:00:07]} Qb6 {[%emt 0:02:18]} 11. Nf3 {
[%emt 0:15:01]} Nc5 {[%emt 0:07:35]} 12. Bxg7 {[%emt 0:00:53]} Kxg7 {[%emt 0:
00:00]} 13. Nc3 {[%emt 0:00:14]} a5 {[%emt 0:09:29]} 14. Nd5 {[%emt 0:03:57]}
Qd8 {[%emt 0:02:35]} 15. Rfd1 {[%emt 0:05:48]} Be6 {[%emt 0:11:20]} 16. Nf4 {
[%emt 0:11:01]} Qd7 {[%emt 0:04:34]} 17. Rac1 {[%emt 0:04:18]} Rab8 {[%emt 0:
00:00]} 18. Ng5 {[%emt 0:23:48]} Ne5 {[%emt 0:13:00]} 19. Qxa5 {[%emt 0:03:48]}
h6 {[%emt 0:03:01]} 20. Ngxe6+ {[%emt 0:02:30]} fxe6 {[%emt 0:00:35]} 21. Qxc5
{[%emt 0:03:01]} dxc5 {[%emt 0:04:16]} 22. Rxd7 {[%emt 0:00:06]} Nxd7 {[%emt 0:
00:00]} 23. Nxe6+ {[%emt 0:00:04]} Kf6 {[%emt 0:00:28]} 24. Nxf8 {[%emt 0:00:
00]} Nxf8 {[%emt 0:00:16]} 25. Rd1 {[%emt 0:00:16]} b6 {[%emt 0:00:44]} 26. f4
{[%emt 0:04:27]} Ne6 {[%emt 0:01:41]} 27. e3 {[%emt 0:02:14]} h5 {[%emt 0:00:
00]} 28. Kf2 {[%emt 0:00:41]} Nf8 {[%emt 0:01:34]} 29. Ke2 {[%emt 0:00:50]} e5
{[%emt 0:01:16]} 30. Rd6+ {[%emt 0:00:44]} Ke7 {[%emt 0:01:24]} 31. fxe5 {
[%emt 0:00:28]} b5 {[%emt 0:00:52]} 32. cxb5 {[%emt 0:03:17]} Rxb5 {[%emt 0:00:
00]} 33. Bd5 {[%emt 0:00:14]} 1-0

[Event "44th Chess Olympiad Women 2022"]
[Site "Chennai"]
[Date "2022.07.29"]
[Round "1.20"]
[White "Madelta Glenda"]
[Black "Lehaci, Miruna-Daria"]
[Result "0-1"]
[WhiteElo "1516"]
[BlackElo "2193"]
[Annotator "RC"]
[PlyCount "104"]
[EventDate "2022.??.??"]
[TimeControl "60"]

1. d4 {[%emt 0:00:05]} e6 {[%emt 0:00:07]} 2. Bf4 {[%emt 0:00:10]} Nf6 {
[%emt 0:00:15]} 3. e3 {[%emt 0:00:14]} c5 {[%emt 0:03:23]} 4. c3 {[%emt 0:00:
00]} d5 {[%emt 0:01:33]} 5. Nd2 {[%emt 0:06:06]} Bd6 {[%emt 0:05:10]} 6. Bg3 {
[%emt 0:02:26]} Qc7 {[%emt 0:01:32]} 7. Ngf3 {[%emt 0:04:42]} Nbd7 {[%emt 0:00:
00]} 8. Bb5 {[%emt 0:03:56]} O-O {[%emt 0:03:34]} 9. O-O {[%emt 0:03:13]} a6 {
[%emt 0:02:03]} 10. Bd3 {[%emt 0:05:19]} e5 {[%emt 0:03:41]} 11. dxe5 {[%emt 0:
00:00]} Nxe5 {[%emt 0:00:08]} 12. Nxe5 {[%emt 0:01:11]} Bxe5 {[%emt 0:00:04]}
13. Bxe5 {[%emt 0:02:14]} Qxe5 {[%emt 0:00:06]} 14. Nf3 {[%emt 0:00:05]} Qe7 {
[%emt 0:00:53]} 15. Re1 {[%emt 0:01:12]} Bg4 {[%emt 0:03:30]} 16. Be2 {[%emt 0:
00:00]} Rad8 {[%emt 0:02:30]} 17. Qc2 {[%emt 0:12:27]} Rd6 {[%emt 0:05:37]} 18.
Nh4 {[%emt 0:04:01]} Qe5 {[%emt 0:06:16]} 19. Nf3 {[%emt 0:07:21]} Qe8 {
[%emt 0:04:32]} 20. Rad1 {[%emt 0:00:40]} Re6 {[%emt 0:18:43]} 21. Ng5 {
[%emt 0:15:31]} Bxe2 {[%emt 0:00:41]} 22. Rxe2 {[%emt 0:02:45]} Re5 {[%emt 0:
00:00]} 23. Nf3 {[%emt 0:00:50]} Re4 {[%emt 0:01:11]} 24. Ng5 {[%emt 0:01:10]}
Re7 {[%emt 0:07:16]} 25. Nf3 {[%emt 0:01:16]} Re4 {[%emt 0:07:10]} 26. Ng5 {
[%emt 0:00:43]} Rh4 {[%emt 0:01:50]} 27. Qf5 {[%emt 0:02:39]} Rh5 {[%emt 0:00:
00]} 28. g4 {[%emt 0:05:07]} Rh4 {[%emt 0:03:58]} 29. h3 {[%emt 0:01:57]} Rh6 {
[%emt 0:05:48]} 30. Kg2 {[%emt 0:00:49]} Rg6 {[%emt 0:01:31]} 31. Nf3 {[%emt 0:
00:00]} h6 {[%emt 0:00:07]} 32. Red2 {[%emt 0:01:43]} Qe7 {[%emt 0:01:13]} 33.
Qe5 {[%emt 0:01:10]} Qd7 {[%emt 0:00:46]} 34. Nh4 {[%emt 0:01:05]} Nxg4 {
[%emt 0:01:34]} 35. hxg4 {[%emt 0:01:06]} Qxg4+ {[%emt 0:00:26]} 36. Kf1 {
[%emt 0:00:15]} Qxh4 {[%emt 0:00:45]} 37. Rxd5 {[%emt 0:00:44]} Rf6 {[%emt 0:
00:00]} 38. R1d2 {[%emt 0:00:27]} Qh3+ {[%emt 0:01:01]} 39. Ke2 {[%emt 0:00:15]
} Qg2 {[%emt 0:00:41]} 40. Qg3 {[%emt 0:01:10]} Qe4 {[%emt 0:00:21]} 41. Rxc5 {
[%emt 0:31:06]} Qb1 {[%emt 0:32:21]} 42. a3 {[%emt 0:01:25]} Rg6 {[%emt 0:00:
00]} 43. Qh3 {[%emt 0:00:00]} Rg1 {[%emt 0:00:00]} 44. Rc8 {[%emt 0:00:00]}
Rxc8 {[%emt 0:00:00]} 45. Qxc8+ {[%emt 0:00:00]} Kh7 {[%emt 0:00:00]} 46. Kf3 {
[%emt 0:00:00]} Qg6 {[%emt 0:00:00]} 47. Qd7 {[%emt 0:00:00]} f5 {[%emt 0:00:
00]} 48. Ke2 {[%emt 0:00:00]} Qg4+ {[%emt 0:00:00]} 49. Kd3 {[%emt 0:00:00]}
Qe4+ {[%emt 0:00:00]} 50. Ke2 {[%emt 0:00:00]} Qc4+ {[%emt 0:00:00]} 51. Rd3 {
[%emt 0:00:00]} Qg4+ {[%emt 0:00:00]} 52. Kd2 {[%emt 0:01:52]} Qd1# {[%emt 0:
00:00]} 0-1